Cogmind - Beta 11 @@@ ROGUE MODE // 2022.04.01 @ 23:03:23 Player: Turbografx16 Result: Self-destructed Performance ------------- Evolutions (1) 500 Regions Visited (2) 400 Robots Destroyed (20) 100 Value Destroyed (488) 488 Prototype IDs (1) 20 Alien Tech Used (0) 0 Bonus (0) 0 TOTAL SCORE: 1508 Bonus ------- None Cogmind --------- Core Integrity 329/400 Matter 220/300 Energy 265/265 System Corruption 0% Temperature Cool (0) Movement Treading (160) Location -9/Materials Parts ------- > --- POWER (1) -------- Improved Ion Engine > --- PROPULSION (3) --- Improved Treads Improved Treads Improved Treads > --- UTILITY (3) ------ Medium Storage Unit Sensor Array Hacking Suite > --- WEAPON (2) ------- (None) > --- INVENTORY (10) --- Improved Ion Engine Improved Treads Aluminum Leg Small Storage Unit Peak State ------------ > --- POWER ------------ Improved Ion Engine > --- PROPULSION ------- Improved Treads Improved Treads Improved Treads > --- UTILITY ---------- Medium Storage Unit Sensor Array Hacking Suite > --- WEAPON ----------- Improved EM Shotgun > --- INVENTORY -------- Improved Ion Engine Improved Treads Aluminum Leg Small Storage Unit Grenade Launcher [Rating: 16] Favorites ----------- Power Improved Ion Engine Engine Improved Ion Engine Propulsion Aluminum Leg Treads Improved Treads Leg Aluminum Leg Utility Small Storage Unit Device Sensor Array Storage Small Storage Unit Hackware Hacking Suite Weapon Improved EM Shotgun Energy Gun Improved EM Shotgun Ballistic Gun Assault Rifle Launcher Grenade Launcher Build | -11 -10 -9 ------- Run | Scr Mat Mat Slots Evolved 2 | . . 2 Power . | . . . Propulsion 1 | . . 1 Utility 1 | . . 1 Weapon . | . . . Parts Attached 14 | 2 9 3 Power 3 | . 3 . Engine 3 | . 3 . Core . | . . . Reactor . | . . . Propulsion 3 | . 2 1 Treads 3 | . 2 1 Leg . | . . . Wheel . | . . . Hover . | . . . Flight . | . . . Utility 4 | 1 2 1 Device 2 | 1 1 . Storage 1 | . 1 . Processor . | . . . Hackware 1 | . . 1 Protection . | . . . Artifact . | . . . Weapon 4 | 1 2 1 Energy Gun 2 | . 2 . Energy Cannon . | . . . Ballistic Gun 1 | 1 . . Ballistic Cannon . | . . . Launcher 1 | . . 1 Special Weapon . | . . . Impact Weapon . | . . . Slashing Weapon . | . . . Piercing Weapon . | . . . Special Melee Weapon . | . . . Unidentified Prototypes 1 | . 1 . Parts Lost 5 | . 3 2 Power 1 | . 1 . Propulsion 1 | . 1 . Utility . | . . . Weapon 3 | . 1 2 Highest Loss Streak 2 | . 2 1 To Critical Strikes . | . . . Average Slot Usage (%) 92 | . 93 85 Engine 12 | . 13 11 Treads 14 | . 10 33 Leg 14 | . 17 . Device 13 | . 14 11 Storage 13 | . 14 11 Hackware 2 | . . 11 Energy Gun 17 | . 19 6 Ballistic Gun 2 | . 3 . Naked Turns . | . . . Heaviest Build 21 | 13 21 21 Greatest Support 69 | 20 46 69 Greatest Overweight (x) . | . . . Average Overweight (x) . | . . . Largest Inventory Capacity 10 | 8 10 10 Average Capacity 8 | 8 8 10 Most Carried 8 | 6 8 6 Average Carried 6 | 5 6 4 Final Capacity 10 | 8 10 10 Final Carried 7 | 6 7 4 Class Distribution -------------------- 100% | Mutant Dominant Class ---------------- Mutant | -10/Materials Mutant | -9/Materials Resources | -11 -10 -9 ----------- Run | Scr Mat Mat Matter Collected 325 | 238 87 . Remotely . | . . . Salvage Created 700 | 212 387 101 Parts 54 | 20 26 8 Haulers Intercepted . | . . . Recyclers Shooed 1 | 1 . . Parts Field Recycled . | . . . Retrieved Matter . | . . . Parts Self-Destructed . | . . . Prevented . | . . . Kills | -11 -10 -9 ------- Run | Scr Mat Mat Combat Hostiles Destroyed 10 | . 7 3 Guns 7 | . 6 1 AOE 3 | . 1 2 Classes Destroyed 7 | 2 3 2 Builder 1 | . . 1 Tunneler 5 | 5 . . Recycler 1 | 1 . . Operator 2 | . 2 . Watcher 1 | . 1 . Grunt 9 | . 7 2 Sentry 1 | . . 1 Best Kill Streak 4 | 4 4 3 Combat Bots Only 2 | . 2 2 Max Kills in Single Turn 2 | 2 1 2 Gunslinging . | . . . Exploded 1 | . 1 1 Melee . | . . . Uniques/NPCs Destroyed . | . . . Combat | -11 -10 -9 -------- Run | Scr Mat Mat Damage Taken 921 | . 539 382 Core 164 | . 93 71 Absorbed by Shields . | . . . Core Remaining (%) 81 | 100 62 . Volleys Fired 38 | 6 22 10 Largest 2 | 2 2 1 Hottest 90 | 60 90 45 Shots Fired 54 | 12 32 10 Gun 48 | 12 32 4 Cannon . | . . . Launcher 6 | . . 6 Special . | . . . Kinetic 6 | 6 . . Thermal . | . . . Explosive 6 | . . 6 Electromagnetic 42 | 6 32 4 Robot Hit Streak 8 | 7 7 8 Robot Miss Streak 4 | 1 4 1 Penetration Max . | . . . Secondary Targets . | . . . Shots Hit Robots 46 | 8 29 9 Core Hits 36 | 7 21 8 Critical Kills . | . . . Critical Parts Destroyed . | . . . Critical Strikes . | . . . Melee Attacks . | . . . Impact . | . . . Slashing . | . . . Piercing . | . . . Sneak Attacks . | . . . Combat Hostiles . | . . . Follow-up Attacks . | . . . Damage Inflicted 1139 | 154 657 328 Guns 639 | 90 491 58 Cannons . | . . . Explosions 500 | 64 166 270 Melee . | . . . Ramming . | . . . Kinetic 25 | 25 . . Thermal 230 | 64 166 . Explosive 270 | . . 270 Electromagnetic 614 | 65 491 58 Impact . | . . . Slashing . | . . . Piercing . | . . . Highest Corruption 2 | . 2 . Average Corruption 2 | . 2 . Corruption Purged . | . . . Corruption Blocked . | . . . Effects 5 | . 5 . Message Errors 1 | . 1 . Energy Discharges 1 | . 1 . Parts Rejected 1 | . 1 . Data Loss (major) 2 | . 2 . Overload Shots . | . . . Overflow Damage 1 | . 1 . Projectiles . | . . . Explosions 1 | . 1 . Melee . | . . . Knockbacks . | . . . Impact . | . . . Kinetic . | . . . Secondary . | . . . Self-Inflicted Damage 89 | . 21 68 Shots 5 | . 1 4 Rammed 2 | . 2 . Targets Rammed 2 | . 2 . Kicked . | . . . Crushed . | . . . Highest Temperature 124 | . 124 8 Average Temperature 41 | . 44 5 Received Heat Transfer 369 | . 234 135 Siege Activations . | . . . Robots Corrupted . | . . . Combat Hostiles . | . . . Parts Fried . | . . . Impact Corruptions . | . . . Robots Melted . | . . . Combat Hostiles . | . . . Parts Melted . | . . . Heat Transferred 350 | 100 250 . Parts Sabotaged . | . . . Parts Stolen . | . . . Parts Stripped . | . . . Power Chain Reactions 4 | 1 3 . Missiles Intercepted . | . . . Alert | -11 -10 -9 ------- Run | Scr Mat Mat Peak Influence 291 | 30 291 191 Initial 63 | . 19 63 Average 98 | 12 116 87 Maximum Alert Level 1 | . 1 . Low Security (%) 79 | 100 70 100 Level 1 20 | . 29 . Level 2 . | . . . Level 3 . | . . . Level 4 . | . . . Level 5 . | . . . High Security . | . . . Max Security . | . . . Squads Dispatched 3 | . 2 1 Investigation 2 | . 1 1 Extermination . | . . . Reinforcement 1 | . 1 . Assault . | . . . Garrison . | . . . Intercept . | . . . Searches Triggered . | . . . Construction Impeded . | . . . Haulers Reinforced . | . . . Active Scanning Responses . | . . . Cargo Convoy Interrupts . | . . . Stealth | -11 -10 -9 --------- Run | Scr Mat Mat Distress Signals . | . . . Communications Jammed . | . . . Distress Signals . | . . . Times Spotted 21 | . 14 7 Peak Tracking Total 6 | . 5 6 Tactical Retreats 1 | . 1 . Traps | -11 -10 -9 ------- Run | Scr Mat Mat Traps Triggered 2 | . 1 1 Indirectly . | . . . Trap Hack Attempts . | . . . Triggered . | . . . Disarmed . | . . . Reprogrammed . | . . . Reused . | . . . Traps Extracted . | . . . Installed . | . . . Triggered 1 | . 1 . Machines | -11 -10 -9 ---------- Run | Scr Mat Mat Machines Disabled 3 | . 3 . Max in Single Turn 1 | . 1 . Machines Sabotaged . | . . . Garrisons Compromised . | . . . Overloaded Fab Kills . | . . . Hacking | -11 -10 -9 --------- Run | Scr Mat Mat Machines Accessed 2 | . 2 . Terminals 2 | . 2 . Fabricators . | . . . Repair Stations . | . . . Recycling Units . | . . . Scanalyzers . | . . . Garrison Access . | . . . Total Hacks 6 | . 6 . Successful 3 | . 3 . Failed 3 | . 3 . Catastrophic 1 | . 1 . Database Lockouts . | . . . Manual 6 | . 6 . Terminals 6 | . 6 . Fabricators . | . . . Repair Stations . | . . . Recycling Units . | . . . Scanalyzers . | . . . Garrison Access . | . . . Terminal Hacks 1 | . 1 . Robot Analysis 1 | . 1 . Fabricator Hacks . | . . . Repair Station Hacks . | . . . Recycling Unit Hacks . | . . . Scanalyzer . | . . . Garrison Access Hacks . | . . . Unauthorized Hacks 2 | . 2 . Terminals 2 | . 2 . Botnet 2 | . 2 . Fabricators . | . . . Repair Stations . | . . . Recycling Units . | . . . Scanalyzers . | . . . Garrison Access . | . . . Data Cores Recovered 1 | . 1 . Used 1 | . 1 . Hacking Detections 2 | . 2 . Full Trace Events . | . . . Feedback Events . | . . . Feedback Blocked . | . . . Robot Schematics Acquired . | . . . Robots Built . | . . . Authchips . | . . . Time . | . . . Total Robot Build Rating . | . . . Part Schematics Acquired . | . . . Parts Built . | . . . Authchips . | . . . Time . | . . . Total Part Build Rating . | . . . Parts Repaired . | . . . Time . | . . . Parts Recycled . | . . . Recycled Matter . | . . . Retrieved Matter . | . . . Retrieved Components . | . . . Parts Scanalyzed . | . . . Part Schematics Acquired . | . . . Parts Damaged . | . . . Bothacking | -11 -10 -9 ------------ Run | Scr Mat Mat Used RIF Installer . | . . . Robots Hacked . | . . . Non-combat . | . . . Combat . | . . . Robot Hacks Applied . | . . . Relay Couplers Released . | . . . Fabnet Peak Effective % . | . . . Robots Rewired . | . . . Allies Hacked . | . . . Hacks Repelled . | . . . Allies | -11 -10 -9 -------- Run | Scr Mat Mat Total Allies . | . . . Largest Group . | . . . Highest-Rated Group . | . . . Highest-Rated Ally . | . . . Total Orders . | . . . Ally Attacks . | . . . Total Damage . | . . . Kills . | . . . Allies Corrupted . | . . . Allies Melted . | . . . Intel | -11 -10 -9 ------- Run | Scr Mat Mat Robot Analysis Total 1 | . 1 . Derelict Logs Recovered . | . . . Drone Launches . | . . . Drone Recoveries . | . . . Exploration | -11 -10 -9 ------------- Run | Scr Mat Mat Turns Passed 629 | 81 448 100 Spaces Moved 306 | 20 238 48 Core . | . . . Treads 129 | . 81 48 Legs 177 | 20 157 . Wheels . | . . . Hover . | . . . Flight . | . . . Fastest Speed 120 | 120 120 160 Average Speed 136 | 120 133 160 Slowest Speed 160 | 120 160 160 Overloaded Moves . | . . . Propulsion Burnouts . | . . . Robots Hopped . | . . . Cave-ins Triggered . | . . . Exploration Rate (%) 17 | 3 42 6 Regions Visited 2 Branch Regions . Pre-discovered Areas . | . . . Known Exits Taken . | . . . Unknown Exits Taken 2 | 1 1 . Scrap Searched . | . . . Spaces Dug . | . . . Terrain Destroyed 55 | 7 14 34 Melee . | . . . Projectile . | . . . AOE 55 | 7 14 34 Terrain Rammed . | . . . Walls Destroyed . | . . . Machines Disabled . | . . . Actions | -11 -10 -9 --------- Run | Scr Mat Mat Total 464 | 65 338 61 Wait 85 | 36 49 . Move 304 | 19 237 48 Hop . | . . . Pick Up 9 | 1 8 . Fast Attach 4 | 1 3 . Attach 7 | 1 3 3 Detach 2 | . 2 . Swap 3 | . 3 . Drop 10 | 1 9 . Fire 38 | 6 22 10 Melee . | . . . Ram . | . . . Kick . | . . . Crush 2 | . 2 . Escape Stasis . | . . . Rewire . | . . . Trap . | . . . Miscellaneous . | . . . Route ------- -11/Scrapyard -10/Materials (discovered 2 exits: [*Mat] / [*Min]) -9/Materials History --------- Turn | Location | Event 3 | -11/Scrapyard | Discovered new exit (range 3) 82 | -11/Scrapyard | Entered Materials 292 | -10/Materials | Discovered new exit (range 9) 307 | -10/Materials | Build established: Mutant 506 | -10/Materials | Discovered new exit (range 5) 530 | -10/Materials | Entered another Materials area 530 | -9/Materials | Evolved 2 slots: Propulsion x1, Utility x1 630 | -9/Materials | Self-destructed Last Messages --------------- 00516_ G-34 Mercenary destroyed. 00520_ Door malfunctions. 00521_ Acquired 10 matter. PARAMETERS=PROPULSION+1,UTILITY+1 LOCATION=UNKNOWN GOAL=ESCAPE 00558_ Triggered Alarm Trap. 00558_ An alarm sounds. 00558_ ALERT: Alarm triggered, dispatching investigation squad. 00575_ Y-45 Defender destroyed. 00589_ K-01 Serf collects debris. 00594_ Imp. EM Shotgun destroyed. 00594_ Critical hit (Burn: +37). 00597_ R-06 Scavenger collects Corrupted Lgt. Treads. 00621_ U-05 Engineer destroyed. 00621_ G-34 Mercenary destroyed. 00623_ U-05 Engineer destroyed. 00623_ G-34 Mercenary destroyed. 00625_ Grenade Launcher destroyed. 00627_ The unstable cave ceiling collapses. Map ----- +----------------------------------------------------+ | ?????????????????????????????????????????????????? | | ??????????????????? ???????????????????????????? | | ??????????????????? ?????????????????????????? | | ??????????????????? ?????????????????????????? | | ??????????????????# ?????????????????????????? | | ??????????????????# ?????????????????????????? | | ??????????????????# ??????????????????????????? | | ??????????????????# ??????????????????????????? | | ??????????????????# ??????????????????????????? | | ??????????????????# #??????????????????????????? | | ??????????????????# #??????????????????????????? | | ??????????????????# #??????????????????????????? | | ??????????????????# #??????????????????????????? | | ??????????????????# ??#??????????????????????????? | | ??????????????????# #??????????????????????????? | | ??????????????????# #??????????????????????????? | | ?????????######???# #??????????????????????????? | | ????###### #### ####???????????????????????? | | ? #???????????????????????? | | ? [[ #???????????????????????? | | ? !%= [%| #???????????????????????? | | ???#+##### ###### a% #####???????????????????? | | ?????????######????## Yg? #???????????????????? | | ??????????????????## g #???????????????????? | | ??????????????????# ## ###############?????? | | ????????????????????# @ #?????? | | ????????????????????# #?????? | | ????????????????????# #?????? | | ????????????????????## ###############?????? | | ?????????????????????## # ###???????????????????? | | ??????????????????????######?????????????????????? | | ?????????????????????????????????????????????????? | | ?????????????????????????????????????????????????? | | ?????????????????????????????????????????????????? | | ?????????????????????????????????????????????????? | | ?????????????????????????????????????????????????? | | | | | | | | | | | | | | | | | | | | | | | | | | | | | +----------------------------------------------------+ Best States ------------- Heat Dissipation 28 Energy Generation 12 Energy Capacity 265 Matter Stores 300 Matter Capacity 300 Sight Range 16 Robot Scan Range 14 Terrain Scan Range 16 Terrain Scan Density 10 Evasion (%) 55 Recoil Reduction 3 Offensive Hacking 10 Item Schematics ----------------- None Robot Schematics ------------------ None Fabricated ------------ Nothing Alien Tech Used ----------------- None Achievements -------------- None Challenges ------------ None Game ------ Seed SurveybotSmartbombRigger Manual? 0 Play Time 00:08:22 Cumulative 53.8 hours Start 2022.04.01 @ 22:56:02 End 2022.04.01 @ 23:03:23 Sessions 1 Manual Loads 0 Difficulty Rogue Special Mode None Game No. 81 Rogue 25 Adventurer 56 Explorer 0 Win Type - Total 4 Types 3/0/0/1/0/0/0/0/0 Lore% 46 Gallery% 53 Achievement% 54 Wizard Run 0 Options --------- ASCII 0 Keyboard 0 Movement Mouse Keybinds 0 Fullscreen 1 Font 20/SmallcapsGlow Map View 66x50 Tactical HUD 1 Map Filters NONE Filters NONE Steam 1 RUN: 75541f68-6b03-4e23-a2f8-7545302079d4